fUST/lending_fUST_20240721
["ID","MTS","AMOUNT","RATE_DAILY","PERIOD"]
[332800363,1721532651470,-500.0,0.00013972,2]
[332800364,1721532651484,-931.1,0.00013972,2]
[332800365,1721532651494,-500.0,0.00013972,2]
[332800366,1721532651504,-500.0,0.00013972,2]
[332800367,1721532651515,-500.0,0.00013972,2]
[332800368,1721532651526,-3609.17,0.00013972,2]
[332800369,1721532651536,-1097.27,0.00013972,2]
[332800370,1721532651547,-500.0,0.00013972,2]
[332800371,1721532651557,-2570.26,0.00013972,2]
[332800372,1721532651567,-1219.61,0.00013972,2]
[332800373,1721532651579,-1836.33,0.00013972,2]
[332800374,1721532651590,-500.0,0.00013972,2]
[332800375,1721532651601,-503.96209384,0.00013972,2]
[332800376,1721532651613,-500.0,0.00013972,2]
[332800377,1721532651623,-500.0,0.00013972,2]
[332800378,1721532651634,-500.0,0.00013972,2]
[332800379,1721532651644,-2349.57,0.00013972,2]
[332800380,1721532651654,-1055.7,0.00013972,2]
[332800381,1721532651667,-500.0,0.00013972,2]
[332800382,1721532651678,-500.0,0.00013972,2]
[332800383,1721532651690,-598.19,0.00013972,2]
[332800384,1721532651701,-657.63,0.00013972,2]
[332800385,1721532651711,-2022.82,0.00013972,2]
[332800386,1721532651721,-500.0,0.00013972,2]
[332800387,1721532651732,-2282.34,0.00013972,2]
[332800388,1721532651743,-5625.7,0.00013972,2]
[332800389,1721532651753,-646.26,0.00013972,2]
[332800390,1721532651765,-500.0,0.00013972,2]
[332800391,1721532651775,-500.0,0.00013972,2]
[332800392,1721532651790,-672.79,0.00013972,2]
[332800393,1721532651800,-500.0,0.00013972,2]
[332800394,1721532651812,-3122.49,0.00013972,2]
[332800395,1721532651822,-2021.04,0.00013972,2]
[332800396,1721532651831,-500.0,0.00013972,2]
[332800397,1721532651840,-512.34617721,0.00013972,2]
[332800398,1721532651850,-500.0,0.00013972,2]
[332800399,1721532651859,-500.0,0.00013972,2]
[332800400,1721532651869,-587.41468197,0.00013972,2]
[332800401,1721532651879,-910.34,0.00013972,2]
[332800402,1721532651889,-501.95006325,0.00013972,2]
[332800403,1721532651900,-500.0,0.00013972,2]
[332800404,1721532651910,-500.0,0.00013972,2]
[332800405,1721532651921,-500.0,0.00013972,2]
[332800406,1721532651932,-500.0,0.00013972,2]
[332800407,1721532651943,-599.7,0.00013972,2]
[332800408,1721532651953,-2258.16,0.00013972,2]
[332800409,1721532651963,-526.35927436,0.00013972,2]
[332800410,1721532651974,-500.0,0.00013972,2]
[332800411,1721532651984,-572.28,0.00013972,2]
[332800412,1721532651995,-500.0,0.00013972,2]
[332800413,1721532652005,-500.0,0.00013972,2]
[332800414,1721532652016,-500.0,0.00013972,2]
[332800415,1721532652026,-4153.2,0.00013972,2]
[332800416,1721532652036,-780.96,0.00013972,2]
[332800417,1721532652047,-1120.1,0.00013972,2]
[332800418,1721532652057,-500.0,0.00013972,2]
[332800419,1721532652067,-8031.53,0.00013972,2]
[332800420,1721532652078,-1788.73,0.00013972,2]
[332800421,1721532652088,-500.0,0.00013972,2]
[332800422,1721532652100,-256.63883517,0.00013972,2]
[332800423,1721532652111,-500.0,0.00013972,2]
[332800424,1721532652122,-613.67,0.00013972,2]
[332800425,1721532652132,-353.74643827,0.00013972,2]
[332800426,1721532652142,-2495.28,0.00013972,2]
[332800427,1721532652152,-500.0,0.00013972,2]
[332800428,1721532652162,-512.99821633,0.00013972,2]
[332800429,1721532652174,-500.0,0.00013972,2]
[332800430,1721532652184,-5252.85,0.00013972,2]
[332800431,1721532652194,-500.0,0.00013972,2]
[332800432,1721532652204,-500.0,0.00013972,2]
[332800433,1721532652214,-764.43,0.00013972,2]
[332800434,1721532652224,-500.0,0.00013972,2]
[332800435,1721532652234,-17991.42,0.00013972,2]
[332800436,1721532652245,-558.39,0.00013972,2]
[332800437,1721532652256,-2885.31,0.00013972,2]
[332800438,1721532652268,-500.0,0.00013972,2]
[332800439,1721532652278,-631.7,0.00013972,2]
[332800440,1721532652290,-7537.32,0.00013972,2]
[332800441,1721532652301,-1468.73,0.00013972,2]
[332800442,1721532652312,-500.0,0.00013972,2]
[332800443,1721532652324,-500.0,0.00013972,2]
[332800444,1721532652335,-546.61,0.00013972,2]
[332800445,1721532652350,-500.0,0.00013972,2]
[332800446,1721532652360,-697.56,0.00013972,2]
[332800447,1721532652370,-985.85,0.00013972,2]
[332800448,1721532652381,-1969.99,0.00013972,2]
[332800449,1721532652392,-500.0,0.00013972,2]
[332800450,1721532652402,-500.0,0.00013972,2]
[332800451,1721532652413,-1411.83,0.00013972,2]
[332800452,1721532652423,-745.11,0.00013972,2]
[332800453,1721532652435,-993.84,0.00013972,2]
[332800454,1721532652446,-500.0,0.00013972,2]
[332800455,1721532652457,-500.0,0.00013972,2]
[332800456,1721532652468,-500.0,0.00013972,2]
[332800457,1721532652478,-1257.69,0.00013972,2]
[332800458,1721532652488,-502.02012757,0.00013972,2]
[332800459,1721532652498,-603.44,0.00013972,2]
[332800460,1721532652510,-500.0,0.00013972,2]
[332800461,1721532652524,-1048.19,0.00013972,2]
[332800462,1721532652535,-607.27,0.00013972,2]
[332800463,1721532652545,-500.0,0.00013972,2]
[332800464,1721532652556,-3509.05,0.00013972,2]
[332800465,1721532652566,-500.0,0.00013972,2]
[332800466,1721532652577,-500.0,0.00013972,2]
[332800467,1721532652587,-500.0,0.00013972,2]
[332800468,1721532652597,-3192.94,0.00013972,2]
[332800469,1721532652608,-500.0,0.00013972,2]
[332800470,1721532652811,-1686.5,0.00013972,2]
[332800471,1721532652821,-4683.45,0.00013972,2]
[332800472,1721532652831,-1729.88590511,0.00013972,2]
[332800473,1721532652855,-9719.17409489,0.00013972,2]
[332800474,1721532652867,-1708.93,0.00013972,2]
[332800475,1721532652876,-502.66324291,0.00013972,2]
[332800476,1721532652886,-1906.3,0.00013972,2]
[332800477,1721532652896,-500.0,0.00013972,2]
[332800478,1721532652906,-1360.02,0.00013972,2]
[332800479,1721532652916,-2591.82,0.00013972,2]
[332800480,1721532652926,-500.0,0.00013972,2]
[332800481,1721532652936,-2571.24,0.00013972,2]
[332800482,1721532652947,-773.443423,0.00013972,2]
[332800483,1721532652957,-773.443423,0.00013972,2]
[332800484,1721532652967,-773.443423,0.00013972,2]
[332800485,1721532652977,-500.0,0.00013972,2]
[332800486,1721532652988,-773.443423,0.00013972,2]
[332800487,1721532652998,-773.443423,0.00013972,2]
[332800488,1721532653009,-2283.76,0.00013972,2]
[332800489,1721532653020,-773.443423,0.00013972,2]
[332800490,1721532653030,-2024.97,0.00013972,2]
[332800491,1721532653041,-715.37,0.00013972,2]
[332800492,1721532653051,-4979.59,0.00013972,2]
[332800493,1721532653061,-518.55,0.00013972,2]
[332800494,1721532653070,-500.0,0.00013972,2]
[332800495,1721532653079,-640.12,0.00013972,2]
[332800496,1721532653090,-284.53005078,0.00013972,2]
[332800500,1721532758889,555.0,0.00025,120]
[332800511,1721533745164,-267.82036957,9.801e-05,2]
[332800512,1721533810015,183.11855105,9.801e-05,30]
[332800558,1721533832756,-312.13,9.703e-05,2]
[332800669,1721533838691,-1025.65158518,9.703e-05,2]
[332800670,1721533838703,-16315.40536855,9.703e-05,2]
[332800671,1721533838712,-154.77557542,9.801e-05,2]
[332800672,1721533838721,-1625.30319851,9.801e-05,2]
[332800673,1721533838731,-218.77403009,9.801e-05,2]
[332800674,1721533838740,-2531.46430333,9.801e-05,2]
[332800675,1721533838751,-612.43288594,9.801e-05,2]
[332800676,1721533838763,-19440.57551927,9.801e-05,2]
[332800677,1721533838772,-19440.57551927,9.801e-05,2]
[332800678,1721533838781,-155.2508244,9.999e-05,2]
[332800679,1721533838790,-531.62,0.00010959,2]
[332800680,1721533838801,-443.02,0.00010959,2]
[332800681,1721533838810,-369.18,0.00010959,2]
[332800682,1721533838819,-307.65,0.00010959,2]
[332800683,1721533838827,-256.38,0.00010959,2]
[332800684,1721533838837,-213.65,0.00010959,2]
[332800685,1721533838847,-178.04,0.00010959,2]
[332800686,1721533838856,-3318.0974376,0.0001262,2]
[332800687,1721533838865,-620.0003057,0.00013394,2]
[332800688,1721533838875,-288.4765131,0.00013598,2]
[332800689,1721533838884,-8239.39548981,0.0001369,2]
[332800690,1721533838893,-240.63085601,0.00013698,2]
[332800691,1721533838902,-500.0,0.00013698,2]
[332800692,1721533838911,-500.0,0.00013698,2]
[332800693,1721533838921,-500.0,0.00013698,2]
[332800694,1721533838930,-500.0,0.00013698,2]
[332800695,1721533838939,-500.0,0.00013698,2]
[332800696,1721533838948,-500.0,0.00013698,2]
[332800697,1721533838958,-275.1837793,0.00013698,2]
[332800698,1721533838967,-500.0,0.00013698,2]
[332800699,1721533838977,-500.0,0.00013698,2]
[332800700,1721533838986,-500.0,0.00013698,2]
[332800701,1721533838996,-500.0,0.00013698,2]
[332800702,1721533839005,-500.0,0.00013698,2]
[332800703,1721533839014,-500.0,0.00013698,2]
[332800704,1721533839023,-250.0,0.00013698,2]
[332800705,1721533839032,-500.0,0.00013698,2]
[332800706,1721533839041,-500.0,0.00013698,2]
[332800707,1721533839050,-424.52037373,0.00013698,2]
[332800708,1721533839059,-500.0,0.00013698,2]
[332800709,1721533839069,-500.0,0.00013698,2]
[332800710,1721533839078,-500.0,0.00013698,2]
[332800711,1721533839087,-500.68634203,0.00013698,2]
[332800712,1721533839096,-500.0,0.00013698,2]
[332800713,1721533839105,-500.0,0.00013698,2]
[332800714,1721533839114,-505.98111849,0.00013698,2]
[332800715,1721533839123,-500.0,0.00013698,2]
[332800716,1721533839133,-500.0,0.00013698,2]
[332800717,1721533839142,-500.0,0.00013698,2]
[332800718,1721533839151,-500.0,0.00013698,2]
[332800719,1721533839161,-500.0,0.00013698,2]
[332800720,1721533839170,-394.99090064,0.00013698,2]
[332800721,1721533839179,-908.46010905,0.00013698,2]
[332800722,1721533839188,-500.0,0.00013698,2]
[332800723,1721533839198,-171.5256452,0.00013698,2]
[332800724,1721533839206,-500.0,0.00013698,2]
[332800725,1721533839216,-500.0,0.00013698,2]
[332800726,1721533839225,-500.0,0.00013698,2]
[332800727,1721533839234,-500.0,0.00013698,2]
[332800728,1721533839243,-500.0,0.00013698,2]
[332800729,1721533839254,-500.0,0.00013698,2]
[332800730,1721533839263,-500.0,0.00013698,2]
[332800731,1721533839272,-387.79553029,0.00013698,2]
[332800732,1721533839281,-500.0,0.00013698,2]
[332800733,1721533839290,-500.0,0.00013698,2]
[332800734,1721533839299,-300.0,0.00013698,2]
[332800735,1721533839309,-500.0,0.00013698,2]
[332800736,1721533839318,-500.0,0.00013698,2]
[332800737,1721533839327,-265.28233253,0.00013698,2]
[332800738,1721533839337,-500.0,0.00013698,2]
[332800739,1721533839346,-500.0,0.00013698,2]
[332800740,1721533839356,-500.0,0.00013698,2]
[332800741,1721533839365,-350.0,0.00013698,2]
[332800742,1721533839374,-500.0,0.00013698,2]
[332800743,1721533839383,-502.711129,0.00013698,2]
[332800744,1721533839392,-525.72198129,0.00013698,2]
[332800745,1721533839402,-500.0,0.00013698,2]
[332800746,1721533839412,-500.0,0.00013698,2]
[332800747,1721533839421,-500.0,0.00013698,2]
[332800748,1721533839430,-500.0,0.00013698,2]
[332800749,1721533839440,-502.57095392,0.00013698,2]
[332800750,1721533839449,-520.34,0.00013698,2]
[332800751,1721533839458,-500.0,0.00013698,2]
[332800752,1721533839467,-500.0,0.00013698,2]
[332800753,1721533839476,-500.0,0.00013698,2]
[332800754,1721533839486,-556.1923739,0.00013698,2]
[332800755,1721533839496,-500.0,0.00013698,2]
[332800756,1721533839506,-1809.04,0.00013698,2]
[332800757,1721533839515,-500.0,0.00013698,2]
[332800758,1721533839524,-635.20312292,0.00013698,2]
[332800759,1721533839533,-500.0,0.00013698,2]
[332800760,1721533839542,-500.0,0.00013698,2]
[332800761,1721533839552,-580.74,0.00013698,2]
[332800762,1721533839561,-500.0,0.00013698,2]
[332800763,1721533839571,-259.81166719,0.00013698,2]
[332800764,1721533839580,-1895.26,0.00013698,2]
[332800765,1721533839589,-500.0,0.00013698,2]
[332800766,1721533839599,-500.0,0.00013698,2]
[332800767,1721533839608,-500.0,0.00013698,2]
[332800768,1721533839617,-500.9166556,0.00013698,2]
[332800769,1721533839626,-502.58801939,0.00013698,2]
[332800770,1721533839635,-500.0,0.00013698,2]
[332800771,1721533839644,-500.7971441,0.00013698,2]
[332800772,1721533839653,-502.0283174,0.00013698,2]
[332800773,1721533839662,-522.19846751,0.00013698,2]
[332800774,1721533839671,-500.0,0.00013698,2]
[332800775,1721533839680,-500.0,0.00013698,2]
[332800776,1721533839689,-500.0,0.00013698,2]
[332800777,1721533839699,-500.0,0.00013698,2]
[332800778,1721533839708,-500.0,0.00013698,2]
[332800779,1721533839717,-1221.06,0.00013698,2]
[332800780,1721533839726,-500.81339104,0.00013698,2]
[332800781,1721533839735,-500.0,0.00013698,2]
[332800782,1721533839745,-500.0,0.00013698,2]
[332800783,1721533839755,-500.0,0.00013698,2]
[332800784,1721533839765,-500.0,0.00013698,2]
[332800785,1721533839774,-500.0,0.00013698,2]
[332800786,1721533839783,-500.0,0.00013698,2]
[332800787,1721533839793,-500.0,0.00013698,2]
[332800788,1721533839805,-500.0,0.00013698,2]
[332800789,1721533839814,-500.0,0.00013698,2]
[332800790,1721533839824,-500.0,0.00013698,2]
[332800791,1721533839835,-500.0,0.00013698,2]
[332800792,1721533839845,-525.86400659,0.00013698,2]
[332800793,1721533839854,-500.0,0.00013698,2]
[332800794,1721533839864,-500.0,0.00013698,2]
[332800795,1721533839873,-500.0,0.00013698,2]
[332800796,1721533839882,-500.0,0.00013698,2]
[332800797,1721533839891,-500.0,0.00013698,2]
[332800798,1721533839901,-500.0,0.00013698,2]
[332800799,1721533839910,-500.0,0.00013698,2]
[332800800,1721533839920,-500.0,0.00013698,2]
[332800801,1721533839929,-500.0,0.00013698,2]
[332800802,1721533839939,-500.0,0.00013698,2]
[332800803,1721533839949,-500.0,0.00013698,2]
[332800804,1721533839958,-500.0,0.00013698,2]
[332800805,1721533839967,-500.0,0.00013698,2]
[332800806,1721533839976,-500.0,0.00013698,2]
[332800807,1721533839985,-500.0,0.00013698,2]
[332800808,1721533839995,-500.0,0.00013698,2]
[332800809,1721533840004,-500.0,0.00013698,2]
[332800810,1721533840013,-259.96589553,0.00013698,2]
[332800811,1721533840023,-500.0,0.00013698,2]
[332800812,1721533840032,-500.0,0.00013698,2]
[332800813,1721533840041,-500.0,0.00013698,2]
[332800814,1721533840050,-500.0,0.00013698,2]
[332800815,1721533840060,-501.5162643,0.00013698,2]
[332800816,1721533840069,-500.0,0.00013698,2]
[332800817,1721533840079,-558.09,0.00013698,2]
[332800818,1721533840088,-500.0,0.00013698,2]
[332800819,1721533840098,-500.0,0.00013698,2]
[332800820,1721533840107,-500.0,0.00013698,2]
[332800821,1721533840117,-500.0,0.00013698,2]
[332800822,1721533840127,-500.0,0.00013698,2]
[332800823,1721533840136,-271.74760283,0.00013698,2]
[332800824,1721533840146,-1031.92,0.00013698,2]
[332800825,1721533840155,-633.18,0.00013698,2]
[332800826,1721533840164,-500.0,0.00013698,2]
[332800827,1721533840174,-500.0,0.00013698,2]
[332800829,1721533840183,-508.74971259,0.00013698,2]
[332800830,1721533840192,-534.93,0.00013698,2]
[332800831,1721533840202,-500.0,0.00013698,2]
[332800832,1721533840211,-2000.0,0.00013698,2]
[332800833,1721533840220,-690.88,0.00013698,2]
[332800834,1721533840229,-500.0,0.00013698,2]
[332800835,1721533840239,-500.0,0.00013698,2]
[332800836,1721533840249,-500.0,0.00013698,2]
[332800837,1721533840258,-437.67194213,0.00013698,2]
[332800838,1721533840267,-500.0,0.00013698,2]
[332800839,1721533840277,-500.0,0.00013698,2]
[332800840,1721533840287,-500.0,0.00013698,2]
[332800841,1721533840297,-500.0,0.00013698,2]
[332800842,1721533840308,-513.23170006,0.00013698,2]
[332800844,1721533840318,-457.76178401,0.00013698,2]
[332800845,1721533840327,-500.0,0.00013698,2]
[332800846,1721533840337,-502.90682651,0.00013698,2]
[332800847,1721533840346,-500.0,0.00013698,2]
[332800848,1721533840356,-500.0,0.00013698,2]
[332800849,1721533840365,-500.0,0.00013698,2]
[332800850,1721533840374,-504.64998532,0.00013698,2]
[332800851,1721533840383,-500.0,0.00013698,2]
[332800852,1721533840393,-500.0,0.00013698,2]
[332800853,1721533840402,-857.4,0.00013698,2]
[332800854,1721533840412,-500.0,0.00013698,2]
[332800855,1721533840421,-500.0,0.00013698,2]
[332800856,1721533840430,-577.04,0.00013698,2]
[332800857,1721533840440,-500.0,0.00013698,2]
[332800858,1721533840449,-500.0,0.00013698,2]
[332800859,1721533840458,-500.0,0.00013698,2]
[332800860,1721533840468,-500.0,0.00013698,2]
[332800861,1721533840477,-500.0,0.00013698,2]
[332800862,1721533840487,-500.0,0.00013698,2]
[332800863,1721533840496,-506.96922315,0.00013698,2]
[332800864,1721533840505,-500.0,0.00013698,2]
[332800865,1721533840515,-503.22469802,0.00013698,2]
[332800867,1721533840524,-500.0,0.00013698,2]
[332800868,1721533840533,-835.37,0.00013698,2]
[332800870,1721533840542,-500.0,0.00013698,2]
[332800871,1721533840551,-500.0,0.00013698,2]
[332800873,1721533840560,-970.09,0.00013698,2]
[332800875,1721533840570,-500.0,0.00013698,2]
[332800876,1721533840579,-600.01472195,0.00013698,2]
[332800877,1721533840588,-500.0,0.00013698,2]
[332800879,1721533840597,-500.0,0.00013698,2]
[332800881,1721533840606,-500.0,0.00013698,2]
[332800883,1721533840615,-509.6950994,0.00013698,2]
[332800884,1721533840624,-500.0,0.00013698,2]
[332800886,1721533840633,-500.0,0.00013698,2]
[332800887,1721533840642,-2579.77,0.00013698,2]
[332800888,1721533840651,-537.44918105,0.00013698,2]
[332800889,1721533840661,-500.0,0.00013698,2]
[332800890,1721533840670,-500.0,0.00013698,2]
[332800891,1721533840679,-500.0,0.00013698,2]
[332800892,1721533840688,-500.0,0.00013698,2]
[332800893,1721533840698,-500.0,0.00013698,2]
[332800894,1721533840707,-782.97,0.00013698,2]
[332800895,1721533840717,-500.0,0.00013698,2]
[332800896,1721533840726,-500.0,0.00013698,2]
[332800897,1721533840736,-500.0,0.00013698,2]
[332800898,1721533840745,-342.38173091,0.00013698,2]
[332800899,1721533840761,-2331.2,0.00013698,2]
[332800900,1721533840770,-502.29925953,0.00013698,2]
[332800902,1721533840779,-500.0,0.00013698,2]
[332800904,1721533840789,-500.0,0.00013698,2]
[332800906,1721533840798,-500.0,0.00013698,2]
[332800907,1721533840807,-532.36,0.00013698,2]
[332800908,1721533840817,-500.0,0.00013698,2]
[332800910,1721533840826,-500.0,0.00013698,2]
[332800912,1721533840836,-530.97,0.00013698,2]
[332800913,1721533840846,-500.0,0.00013698,2]
[332800914,1721533840855,-500.0,0.00013698,2]
[332800915,1721533840864,-500.0,0.00013698,2]
[332800916,1721533840873,-500.0,0.00013698,2]
[332800917,1721533840883,-501.09062713,0.00013698,2]
[332800918,1721533840892,-500.0,0.00013698,2]
[332800919,1721533840902,-500.0,0.00013698,2]
[332800920,1721533840912,-500.0,0.00013698,2]
[332800921,1721533840922,-500.0,0.00013698,2]
[332800923,1721533840930,-500.0,0.00013698,2]
[332800926,1721533841144,-500.0,0.00013698,2]
[332800927,1721533841153,-500.0,0.00013698,2]
[332800928,1721533841163,-500.0,0.00013698,2]
[332800929,1721533841172,-500.0,0.00013698,2]
[332800930,1721533841181,-500.0,0.00013698,2]
[332800931,1721533841190,-500.0,0.00013698,2]
[332800932,1721533841199,-500.0,0.00013698,2]
[332800933,1721533841208,-500.0,0.00013698,2]
[332800934,1721533841218,-500.0,0.00013698,2]
[332800935,1721533841227,-500.0,0.00013698,2]
[332800936,1721533841236,-514.31104745,0.00013698,2]
[332800937,1721533841246,-500.0,0.00013698,2]
[332800938,1721533841255,-500.80804312,0.00013698,2]
[332800939,1721533841264,-500.0,0.00013698,2]
[332800940,1721533841274,-500.0,0.00013698,2]
[332800941,1721533841285,-527.46022515,0.00013698,2]
[332800942,1721533841295,-500.0,0.00013698,2]
[332800943,1721533841304,-500.0,0.00013698,2]
[332800944,1721533841313,-500.0,0.00013698,2]
[332800945,1721533841323,-500.0,0.00013698,2]
[332800946,1721533841332,-506.56216054,0.00013698,2]
[332800947,1721533841341,-2439.07,0.00013698,2]
[332800948,1721533841351,-500.0,0.00013698,2]
[332800949,1721533841360,-500.0,0.00013698,2]
[332800950,1721533841370,-500.0,0.00013698,2]
[332800951,1721533841380,-500.0,0.00013698,2]
[332800952,1721533841389,-500.0,0.00013698,2]
[332800953,1721533841398,-502.47704321,0.00013698,2]
[332800954,1721533841407,-500.0,0.00013698,2]
[332800955,1721533841417,-1062.11,0.00013698,2]
[332800956,1721533841426,-931.1,0.00013698,2]
[332800957,1721533841435,-511.49784745,0.00013698,2]
[332800958,1721533841444,-500.0,0.00013698,2]
[332800959,1721533841453,-500.0,0.00013698,2]
[332800960,1721533841462,-500.0,0.00013698,2]
[332800961,1721533841471,-516.03261185,0.00013698,2]
[332800962,1721533841480,-500.0,0.00013698,2]
[332800963,1721533841489,-500.0,0.00013698,2]
[332800964,1721533841499,-500.0,0.00013698,2]
[332800965,1721533841508,-809.32,0.00013698,2]
[332800966,1721533841518,-500.0,0.00013698,2]
[332800967,1721533841528,-500.0,0.00013698,2]
[332800968,1721533841537,-1534.17,0.00013698,2]
[332800969,1721533841546,-515.52,0.00013698,2]
[332800970,1721533841555,-500.0,0.00013698,2]
[332800971,1721533841569,-500.0,0.00013698,2]
[332800972,1721533841578,-500.0,0.00013698,2]
[332800973,1721533841588,-500.0,0.00013698,2]
[332800974,1721533841597,-790.52,0.00013698,2]
[332800975,1721533841606,-500.0,0.00013698,2]
[332800976,1721533841615,-500.0,0.00013698,2]
[332800977,1721533841624,-199.22803893,0.00013698,2]
[332800978,1721533841633,-370.00262806,0.00013698,2]
[332800979,1721533841643,-500.0,0.00013698,2]
[332800980,1721533841652,-500.0,0.00013698,2]
[332800981,1721533841662,-500.0,0.00013698,2]
[332800982,1721533841672,-500.0,0.00013698,2]
[332800983,1721533841681,-500.0,0.00013698,2]
[332800984,1721533841690,-624.2,0.00013698,2]
[332800985,1721533841700,-643.4,0.00013698,2]
[332800986,1721533841709,-503.23587098,0.00013698,2]
[332800987,1721533841718,-630.88,0.00013698,2]
[332800988,1721533841727,-2867.08,0.00013698,2]
[332800989,1721533841736,-500.0,0.00013698,2]
[332800990,1721533841746,-500.0,0.00013698,2]
[332800991,1721533841761,-500.0,0.00013698,2]
[332800992,1721533841770,-500.0,0.00013698,2]
[332800993,1721533841782,-2056.1,0.00013698,2]
[332800994,1721533841791,-399.73560951,0.00013698,2]
[332800995,1721533841802,-500.0,0.00013698,2]
[332800996,1721533841811,-500.0,0.00013698,2]
[332800997,1721533841819,-500.0,0.00013698,2]
[332800998,1721533841829,-500.0,0.00013698,2]
[332800999,1721533841838,-2818.74,0.00013698,2]
[332801000,1721533841848,-500.0,0.00013698,2]
[332801001,1721533841857,-501.33508252,0.00013698,2]
[332801002,1721533841867,-500.0,0.00013698,2]
[332801003,1721533841879,-500.0,0.00013698,2]
[332801004,1721533841888,-500.0,0.00013698,2]
[332801005,1721533841898,-500.0,0.00013698,2]
[332801006,1721533841909,-500.0,0.00013698,2]
[332801007,1721533841919,-500.0,0.00013698,2]
[332801008,1721533841930,-500.0,0.00013698,2]
[332801009,1721533841941,-1146.38,0.00013698,2]
[332801010,1721533841953,-500.0,0.00013698,2]
[332801011,1721533841964,-500.0,0.00013698,2]
[332801012,1721533841974,-500.0,0.00013698,2]
[332801013,1721533841985,-500.0,0.00013698,2]
[332801014,1721533841995,-500.0,0.00013698,2]
[332801015,1721533842005,-500.0,0.00013698,2]
[332801016,1721533842014,-500.0,0.00013698,2]
[332801017,1721533842025,-500.0,0.00013698,2]
[332801018,1721533842035,-500.0,0.00013698,2]
[332801019,1721533842045,-790.98,0.00013698,2]
[332801020,1721533842057,-500.0,0.00013698,2]
[332801021,1721533842068,-500.0,0.00013698,2]
[332801022,1721533842079,-500.0,0.00013698,2]
[332801023,1721533842088,-504.86194767,0.00013698,2]
[332801024,1721533842097,-925.23,0.00013698,2]
[332801025,1721533842107,-500.0,0.00013698,2]
[332801026,1721533842117,-502.00479006,0.00013698,2]
[332801027,1721533842126,-500.0,0.00013698,2]
[332801028,1721533842137,-500.0,0.00013698,2]
[332801029,1721533842147,-504.28120277,0.00013698,2]
[332801030,1721533842156,-806.1,0.00013698,2]
[332801031,1721533842167,-500.0,0.00013698,2]
[332801032,1721533842178,-500.0,0.00013698,2]
[332801033,1721533842188,-556.72,0.00013698,2]
[332801034,1721533842201,-500.0,0.00013698,2]
[332801035,1721533842211,-500.0,0.00013698,2]
[332801036,1721533842221,-1120.1,0.00013698,2]
[332801037,1721533842231,-500.0,0.00013698,2]
[332801038,1721533842240,-502.06907572,0.00013698,2]
[332801039,1721533842252,-1107.23,0.00013698,2]
[332801040,1721533842263,-500.0,0.00013698,2]
[332801041,1721533842272,-501.53767902,0.00013698,2]
[332801042,1721533842283,-500.0,0.00013698,2]
[332801043,1721533842292,-831.67,0.00013698,2]
[332801044,1721533842301,-500.0,0.00013698,2]
[332801045,1721533842311,-631.7,0.00013698,2]
[332801046,1721533842321,-508.41832404,0.00013698,2]
[332801047,1721533842330,-500.0,0.00013698,2]
[332801048,1721533842342,-500.0,0.00013698,2]